Cogmind - Beta 16 @@@ ROGUE MODE // 2026.02.01 @ 01:25:01 Player: Artackni Result: Self-destructed Performance ------------- Evolutions (2) 1000 Regions Visited (7) 1400 Robots Destroyed (0) 0 Value Destroyed (0) 0 Prototype IDs (0) 0 Alien Tech Used (0) 0 Bonus (770) 770 TOTAL SCORE: 3170 Bonus ------- Pacifist 270 Entered Garrisons 200 Aligned with FarCom 300 Cogmind --------- Core Integrity 93/550 Matter 286/300 Energy 100/100 System Corruption 0% Temperature Cool (0) Movement Core (50) Location -8/Garrison Parts ------- > --- POWER (5) -------- (None) > --- PROPULSION (2) --- (None) > --- UTILITY (2) ------ (None) > --- WEAPON (2) ------- (None) > --- INVENTORY (5) ---- (None) Peak State ------------ None Favorites ----------- Power None Propulsion None Utility None Weapon None Build | -11 -10 -10 -10 -9 -8 -8 -8 ------- Run | Yrd Mat Min Exi Min Mat Sto Gar Slots Evolved 4 | . . . . . 4 . . Power 4 | . . . . . 4 . . Propulsion . | . . . . . . . . Utility . | . . . . . . . . Weapon . | . . . . . . . . Parts Attached . | . . . . . . . . Power . | . . . . . . . . Engine . | . . . . . . . . Core . | . . . . . . . . Reactor . | . . . . . . . . Propulsion . | . . . . . . . . Treads . | . . . . . . . . Leg . | . . . . . . . . Wheel . | . . . . . . . . Hover . | . . . . . . . . Flight . | . . . . . . . . Utility . | . . . . . . . . Device . | . . . . . . . . Storage . | . . . . . . . . Processor . | . . . . . . . . Hackware . | . . . . . . . . Protection . | . . . . . . . . Artifact . | . . . . . . . . Weapon . | . . . . . . . . Energy Gun . | . . . . . . . . Energy Cannon . | . . . . . . . . Ballistic Gun . | . . . . . . . . Ballistic Cannon . | . . . . . . . . Launcher . | . . . . . . . . Special Weapon . | . . . . . . . . Impact Weapon . | . . . . . . . . Slashing Weapon . | . . . . . . . . Piercing Weapon . | . . . . . . . . Special Melee Weapon . | . . . . . . . . Unidentified Prototypes . | . . . . . . . . Parts Lost . | . . . . . . . . Power . | . . . . . . . . Propulsion . | . . . . . . . . Utility . | . . . . . . . . Weapon . | . . . . . . . . Highest Loss Streak . | . . . . . . . . To Critical Strikes . | . . . . . . . . Average Backups . | . . . . . . . . Power . | . . . . . . . . Propulsion . | . . . . . . . . Utility . | . . . . . . . . Weapon . | . . . . . . . . Tool/Special . | . . . . . . . . Unused Backups . | . . . . . . . . Power . | . . . . . . . . Propulsion . | . . . . . . . . Utility . | . . . . . . . . Weapon . | . . . . . . . . Tool/Special . | . . . . . . . . Average Slot Usage (%) . | . . . . . . . . Peak Build Rating . | . . . . . . . . Average Rating . | . . . . . . . . On Entrance . | . . . . . . . . Avg Prop Armor Cover (%) . | . . . . . . . . Naked Turns 1030 | . 48 176 86 204 374 23 119 Heaviest Build . | . . . . . . . . Greatest Support 3 | 3 3 3 3 3 3 3 3 Greatest Overweight (x) . | . . . . . . . . Average Overweight (x) . | . . . . . . . . Largest Inventory Capacity 5 | 5 5 5 5 5 5 5 5 Average Capacity 5 | 5 5 5 5 5 5 5 5 Most Carried . | . . . . . . . . Average Carried . | . . . . . . . . Final Capacity 5 | 5 5 5 5 5 5 5 5 Final Carried . | . . . . . . . . Class Distribution -------------------- 100% | Mutant Dominant Class ---------------- Mutant | -10/Materials Mutant | -10/Mines Mutant | -10/Exiles Mutant | -9/Mines Mutant | -8/Materials Mutant | -8/Storage Mutant | -8/Garrison Resources | -11 -10 -10 -10 -9 -8 -8 -8 ----------- Run | Yrd Mat Min Exi Min Mat Sto Gar Matter Collected 169 | . . 169 . . . . . Remotely . | . . . . . . . . Salvage Created . | . . . . . . . . Parts . | . . . . . . . . Haulers Intercepted . | . . . . . . . . Recyclers Shooed . | . . . . . . . . Parts Field Recycled . | . . . . . . . . Retrieved Matter . | . . . . . . . . Parts Self-Destructed . | . . . . . . . . Prevented . | . . . . . . . . Parts Restored . | . . . . . . . . Kills | -11 -10 -10 -10 -9 -8 -8 -8 ------- Run | Yrd Mat Min Exi Min Mat Sto Gar Combat Hostiles Destroyed . | . . . . . . . . Classes Destroyed . | . . . . . . . . Best Kill Streak . | . . . . . . . . Combat Bots Only . | . . . . . . . . Max Kills in Single Turn . | . . . . . . . . Gunslinging . | . . . . . . . . Exploded . | . . . . . . . . Melee . | . . . . . . . . Uniques/NPCs Destroyed . | . . . . . . . . Combat | -11 -10 -10 -10 -9 -8 -8 -8 -------- Run | Yrd Mat Min Exi Min Mat Sto Gar Hostile Shots Fired 83 | . . 13 . 9 3 . 58 Missed 28 | . . 5 . 2 2 . 19 Hits 55 | . . 8 . 7 1 . 39 Projectile 55 | . . 8 . 7 1 . 39 Critical Strikes 1 | . . . . . . . 1 Damage Taken 652 | . . 108 . 87 25 . 432 Core 652 | . . 108 . 87 25 . 432 Absorbed by Shields 33 | . . . . . . . 33 Core Remaining (%) 61 | 100 . . . 22 . . . Volleys Fired . | . . . . . . . . Largest . | . . . . . . . . Hottest . | . . . . . . . . Shots Fired . | . . . . . . . . Gun . | . . . . . . . . Cannon . | . . . . . . . . Launcher . | . . . . . . . . Special . | . . . . . . . . Kinetic . | . . . . . . . . Thermal . | . . . . . . . . Explosive . | . . . . . . . . Electromagnetic . | . . . . . . . . Robot Hit Streak . | . . . . . . . . Robot Miss Streak . | . . . . . . . . Penetration Max . | . . . . . . . . Secondary Targets . | . . . . . . . . Shots Hit Robots . | . . . . . . . . Core Hits . | . . . . . . . . Critical Kills . | . . . . . . . . Critical Parts Destroyed . | . . . . . . . . Critical Strikes . | . . . . . . . . Melee Attacks . | . . . . . . . . Impact . | . . . . . . . . Slashing . | . . . . . . . . Piercing . | . . . . . . . . Sneak Attacks . | . . . . . . . . Combat Hostiles . | . . . . . . . . Follow-up Attacks . | . . . . . . . . Damage Inflicted 35 | . . 20 . . 15 . . Guns . | . . . . . . . . Cannons . | . . . . . . . . Explosions . | . . . . . . . . Melee . | . . . . . . . . Ramming 35 | . . 20 . . 15 . . Kinetic . | . . . . . . . . Thermal . | . . . . . . . . Explosive . | . . . . . . . . Electromagnetic . | . . . . . . . . Impact . | . . . . . . . . Slashing . | . . . . . . . . Piercing . | . . . . . . . . Highest Corruption . | . . . . . . . . Average Corruption . | . . . . . . . . Corruption Purged . | . . . . . . . . Corruption Blocked . | . . . . . . . . Overload Shots . | . . . . . . . . Overflow Damage . | . . . . . . . . Projectiles . | . . . . . . . . Explosions . | . . . . . . . . Melee . | . . . . . . . . Knockbacks . | . . . . . . . . Impact . | . . . . . . . . Kinetic . | . . . . . . . . Secondary . | . . . . . . . . Self-Inflicted Damage 16 | . . 9 . . 7 . . Shots . | . . . . . . . . Rammed 5 | . . 4 . . 1 . . Targets Rammed 5 | . . 4 . . 1 . . Kicked . | . . . . . . . . Crushed . | . . . . . . . . Highest Temperature 5 | . . . . . . . 5 Average Temperature 5 | . . . . . . . 5 Received Heat Transfer 264 | . . 57 . 51 9 . 147 Siege Activations . | . . . . . . . . Martial Activations . | . . . . . . . . Shielding Activations . | . . . . . . . . Robots Disrupted . | . . . . . . . . Combat Hostiles . | . . . . . . . . Robots Corrupted . | . . . . . . . . Combat Hostiles . | . . . . . . . . Parts Fried . | . . . . . . . . Impact Corruptions . | . . . . . . . . Robots Melted . | . . . . . . . . Combat Hostiles . | . . . . . . . . Parts Melted . | . . . . . . . . Heat Transferred . | . . . . . . . . Parts Sabotaged . | . . . . . . . . Parts Stolen . | . . . . . . . . Parts Stripped . | . . . . . . . . Power Chain Reactions . | . . . . . . . . Alert | -11 -10 -10 -10 -9 -8 -8 -8 ------- Run | Yrd Mat Min Exi Min Mat Sto Gar Maximum Alert Level . | . . . . . . . . Low Security (%) 100 | 100 100 100 . 100 100 100 100 Level 1 . | . . . . . . . . Level 2 . | . . . . . . . . Level 3 . | . . . . . . . . Level 4 . | . . . . . . . . Level 5 . | . . . . . . . . High Security . | . . . . . . . . Max Security . | . . . . . . . . Peak Influence 153 | . . 30 . 45 15 5 153 Initial 13 | . . . . . 13 5 . Average 13 | . . 4 . 11 1 4 79 Influence Increases 288 | . . 30 . 90 15 . 153 Successful Hack 28 | . . . . . . . 28 Anti-Garrison Action 50 | . . . . . . . 50 Lose Combat Pursuer 210 | . . 30 . 90 15 . 75 Influence Decreases 135 | . . 20 10 55 35 15 . Entered New Map 42 | . . . 10 . 22 10 . Time Decay 93 | . . 20 . 55 13 5 . Squads Dispatched 1 | . 1 . . . . . . Investigation . | . . . . . . . . Extermination . | . . . . . . . . Reinforcement 1 | . 1 . . . . . . Assault . | . . . . . . . . Garrison . | . . . . . . . . Intercept . | . . . . . . . . Searches Triggered . | . . . . . . . . Construction Impeded . | . . . . . . . . Haulers Reinforced . | . . . . . . . . Active Scanning Responses . | . . . . . . . . Cargo Convoy Interrupts . | . . . . . . . . Stealth | -11 -10 -10 -10 -9 -8 -8 -8 --------- Run | Yrd Mat Min Exi Min Mat Sto Gar Distress Signals . | . . . . . . . . Communications Jammed . | . . . . . . . . Distress Signals . | . . . . . . . . Times Spotted 37 | . 3 4 . 6 2 1 21 Peak Tracking Total 16 | . 2 2 . 3 1 5 16 Tactical Retreats 7 | . . 1 . 2 1 . 3 Traps | -11 -10 -10 -10 -9 -8 -8 -8 ------- Run | Yrd Mat Min Exi Min Mat Sto Gar Traps Triggered 2 | . . . . . . . 2 Indirectly . | . . . . . . . . Trap Hack Attempts . | . . . . . . . . Triggered . | . . . . . . . . Disarmed . | . . . . . . . . Reprogrammed . | . . . . . . . . Reused . | . . . . . . . . Traps Extracted . | . . . . . . . . Installed . | . . . . . . . . Triggered . | . . . . . . . . Machines | -11 -10 -10 -10 -9 -8 -8 -8 ---------- Run | Yrd Mat Min Exi Min Mat Sto Gar Machines Disabled . | . . . . . . . . Max in Single Turn . | . . . . . . . . Machines Repaired . | . . . . . . . . Machines Dismantled . | . . . . . . . . Machines Sabotaged . | . . . . . . . . Overloaded Fab Kills . | . . . . . . . . Hacking | -11 -10 -10 -10 -9 -8 -8 -8 --------- Run | Yrd Mat Min Exi Min Mat Sto Gar Machines Accessed 4 | . . . . . 1 1 2 Terminals 3 | . . . . . 1 . 2 Fabricators . | . . . . . . . . Repair Stations . | . . . . . . . . Recycling Units . | . . . . . . . . Scanalyzers . | . . . . . . . . Garrison Access 1 | . . . . . . 1 . Total Hacks 5 | . . . . . 1 1 3 Successful 3 | . . . . . . 1 2 Failed 2 | . . . . . 1 . 1 Catastrophic 2 | . . . . . 1 . 1 Database Lockouts . | . . . . . . . . Manual 1 | . . . . . 1 . . Terminals 4 | . . . . . 1 . 3 Fabricators . | . . . . . . . . Repair Stations . | . . . . . . . . Recycling Units . | . . . . . . . . Scanalyzers . | . . . . . . . . Garrison Access 1 | . . . . . . 1 . Terminal Hacks 2 | . . . . . . . 2 Garrison Registry 1 | . . . . . . . 1 Patrol Navigation 1 | . . . . . . . 1 Fabricator Hacks . | . . . . . . . . Repair Station Hacks . | . . . . . . . . Recycling Unit Hacks . | . . . . . . . . Scanalyzer . | . . . . . . . . Garrison Access Hacks 1 | . . . . . . 1 . Unlock Access 1 | . . . . . . 1 . Unauthorized Hacks . | . . . . . . . . Terminals . | . . . . . . . . Fabricators . | . . . . . . . . Repair Stations . | . . . . . . . . Recycling Units . | . . . . . . . . Scanalyzers . | . . . . . . . . Garrison Access . | . . . . . . . . Data Cores Recovered . | . . . . . . . . Used . | . . . . . . . . Hacking Detections 2 | . . . . . 1 . 1 Full Trace Events 1 | . . . . . . . 1 Feedback Events . | . . . . . . . . Feedback Blocked . | . . . . . . . . Robot Schematics Acquired . | . . . . . . . . Robots Built . | . . . . . . . . Authchips . | . . . . . . . . Time . | . . . . . . . . Total Robot Build Rating . | . . . . . . . . Part Schematics Acquired . | . . . . . . . . Parts Built . | . . . . . . . . Authchips . | . . . . . . . . Time . | . . . . . . . . Total Part Build Rating . | . . . . . . . . Part Studies Acquired . | . . . . . . . . Parts Repaired . | . . . . . . . . Time . | . . . . . . . . Parts Recycled . | . . . . . . . . Recycled Matter . | . . . . . . . . Retrieved Matter . | . . . . . . . . Retrieved Components . | . . . . . . . . Parts Scanalyzed . | . . . . . . . . Part Schematics Acquired . | . . . . . . . . Parts Damaged . | . . . . . . . . Bothacking | -11 -10 -10 -10 -9 -8 -8 -8 ------------ Run | Yrd Mat Min Exi Min Mat Sto Gar Used RIF Installer . | . . . . . . . . Robots Hacked . | . . . . . . . . Non-combat . | . . . . . . . . Combat . | . . . . . . . . Robot Hacks Applied . | . . . . . . . . Relay Couplers Released . | . . . . . . . . Fabnet Peak Effective % . | . . . . . . . . Robots Rewired . | . . . . . . . . Allies Hacked . | . . . . . . . . Hacks Repelled . | . . . . . . . . Allies | -11 -10 -10 -10 -9 -8 -8 -8 -------- Run | Yrd Mat Min Exi Min Mat Sto Gar Total Allies . | . . . . . . . . Largest Group . | . . . . . . . . Highest-Rated Group . | . . . . . . . . Highest-Rated Ally . | . . . . . . . . Total Orders . | . . . . . . . . Ally Attacks . | . . . . . . . . Total Damage . | . . . . . . . . Kills . | . . . . . . . . Allies Corrupted . | . . . . . . . . Allies Melted . | . . . . . . . . Intel | -11 -10 -10 -10 -9 -8 -8 -8 ------- Run | Yrd Mat Min Exi Min Mat Sto Gar Active Infowar (turns) . | . . . . . . . . Robot Analysis Total . | . . . . . . . . Derelict Logs Recovered 2 | . . 1 . 1 . . . Drone Launches . | . . . . . . . . Drone Recoveries . | . . . . . . . . Exploration | -11 -10 -10 -10 -9 -8 -8 -8 ------------- Run | Yrd Mat Min Exi Min Mat Sto Gar Turns Passed 1039 | 9 48 176 86 204 374 23 119 Spaces Moved 1467 | 18 95 344 171 351 247 45 196 Core 1467 | 18 95 344 171 351 247 45 196 Treads . | . . . . . . . . Legs . | . . . . . . . . Wheels . | . . . . . . . . Hover . | . . . . . . . . Flight . | . . . . . . . . Fastest Speed 50 | 50 50 50 50 50 50 50 50 Average Speed 50 | 50 50 50 50 50 50 50 50 Slowest Speed 50 | 50 50 50 50 50 50 50 50 Overloaded Moves . | . . . . . . . . Propulsion Burnouts . | . . . . . . . . Robots Hopped . | . . . . . . . . Potential Cave-ins . | . . . . . . . . Cave-ins Triggered . | . . . . . . . . Exploration Rate (%) 33 | 3 28 85 38 63 15 8 27 Regions Visited 7 Branch Regions 4 Pre-discovered Areas 1 | . . 1 . . . . . Known Exits Taken 1 | . . . . . . 1 . Unknown Exits Taken 6 | 1 1 1 1 1 1 . . Scrap Searched 1 | . . 1 . . . . . Spaces Dug . | . . . . . . . . Terrain Destroyed . | . . . . . . . . Melee . | . . . . . . . . Projectile . | . . . . . . . . AOE . | . . . . . . . . Terrain Rammed . | . . . . . . . . Walls Destroyed . | . . . . . . . . Machines Disabled . | . . . . . . . . Actions | -11 -10 -10 -10 -9 -8 -8 -8 --------- Run | Yrd Mat Min Exi Min Mat Sto Gar Total 1762 | 17 94 347 170 378 496 45 215 Wait 290 | . . . . 28 249 . 13 Move 1459 | 17 94 343 170 350 246 45 194 Hop . | . . . . . . . . Pick Up . | . . . . . . . . Fast Attach . | . . . . . . . . Attach . | . . . . . . . . Detach . | . . . . . . . . Swap . | . . . . . . . . Drop . | . . . . . . . . Fire . | . . . . . . . . Melee . | . . . . . . . . Ram 5 | . . 4 . . 1 . . Kick . | . . . . . . . . Crush . | . . . . . . . . Escape Stasis 8 | . . . . . . . 8 Rewire . | . . . . . . . . Trap . | . . . . . . . . Miscellaneous . | . . . . . . . . Route ------- -11/Scrapyard -10/Materials -10/Mines (discovered 2 exits: [*Mat] / [*Exi]) -10/Exiles -9/Mines -8/Materials -8/Storage -8/Garrison (discovered 3 exits: [*Rec x3]) History --------- Turn | Location | Event 5 | -11/Scrapyard | Discovered new exit (range 12) 10 | -11/Scrapyard | Entered Materials 52 | -10/Materials | Discovered new exit (range 13) 58 | -10/Materials | Entered Mines 61 | -10/Mines | Discovered new exit (range 15) 82 | -10/Mines | Assembled infested the area 87 | -10/Mines | Assisted by a Guerilla fighting off Assembled 171 | -10/Mines | Learned location of Zion (-6) 232 | -10/Mines | Deemed a non-threat by the Exiles lab entrance 232 | -10/Mines | Discovered new exit (range 5) 234 | -10/Mines | Entered Exiles 241 | -10/Exiles | Discovered new exit (range 15) 247 | -10/Exiles | Met 8R-AWN 254 | -10/Exiles | Met EX-HEX 271 | -10/Exiles | Met EX-BIN 278 | -10/Exiles | Aligned with FarCom system 279 | -10/Exiles | Given EX-Vault access code 305 | -10/Exiles | Build established: Mutant 320 | -10/Exiles | Entered Mines 323 | -9/Mines | Core integrity fell below 50% 381 | -9/Mines | Found a damaged Exp. Sensor Array with a note attached 509 | -9/Mines | Learned Materials terminal intel 517 | -9/Mines | Discovered new exit (range 15) 524 | -9/Mines | Entered Materials 524 | -8/Materials | Evolved 4 slots: Power x4 525 | -8/Materials | Loaded intel: 12 terminal locations 892 | -8/Materials | Discovered new exit (range 11) 898 | -8/Materials | Entered Storage 921 | -8/Storage | Identified exit to Garrison 921 | -8/Storage | Entered Garrison 979 | -8/Garrison | Discovered new exit (range 23) 979 | -8/Garrison | Discovered new exit (range 57) 979 | -8/Garrison | Discovered new exit (range 50) 989 | -8/Garrison | Attempted to access garrison exit controls, blocked by remote lockdown 1027 | -8/Garrison | Core integrity fell below 50% 1039 | -8/Garrison | Core integrity fell below 20% 1040 | -8/Garrison | Self-destructed Last Messages --------------- 00989_ Remote lockdown engaged. 01021_ Critical hit (Burn: +37). 01023_ S-10 Pest destroyed. Garrison Door activated. 01025_ C-45 Heavy ARC bursts open, deploying its payload. 01025_ G-50 Soldier unfolds itself. 01025_ G-47 Trooper unfolds itself. 01027_ S-10 Pest destroyed. 01031_ Triggered Stasis Trap. 01031_ A bubble of rippling energy engulfs the area. 01031_ Field strength at 94. 01032_ Field strength at 88. 01033_ Field strength at 79. 01034_ Field strength at 73. 01035_ Field strength at 63. 01036_ Field strength at 54. 01037_ Field strength at 41. 01038_ Field strength at 29. 01039_ Field strength at 15. 01039_ S-10 Pest destroyed. Map ----- +----------------------------------------------------+ | #????# #????????# #??????????# ########??# " + | | #????# #????????# #??????????# #?????????# " ### | | ###### #????????# #??????????# #?????????# ###?? | | + #????????# #??????????# #?????????# #???? | | # #### #????????# #??????????# #?????????# #???? | | ###??# #????????# #??????????# #?????????# #???? | | ?????# #????????# ############ ########### ##### | | ?????# #????????# + | | ##???# ########## ####### #### ################# | | #???# ## #?????# #??# #???????????????? | | #???# ### ## ### #?????# #??# ##?????????????## | | #???# #?#+##+#?# #?????# #??# T#?????????????#" | | #???# #?# #?# #?????# #??# ##?????????????#" | | #??##+### ###+####### #### #??????????????#" | | +#### #??????????????## | | #???????????????? | | #???????????????? | | ##### ## ## ###############???????????????? | | ??### ## ## ###???????????????????????????? | | ??# ^ "#???????????????????????????? | | ??# ^ "%#???????????????????????????? | | ??# ^ "#???????????????????????????? | | ??# ^ g #???????????????????????????? | | ??### ## ##g ###???????????????????????????? | | ????# ## ## g############################### | | ##### g g sg%ss @^ + | | + = Yg s s ^^ + | | #### [%% g ######## #################### | | #??## ## ######??????# #??????????????????# | | #???# ## #???????????# #??????????????????# | | ##### #######???????????# #??????????????????# | | + #?????????????????# #??????????????????# | | ##### #?????????????????# #??????????????????# | | #???# #?????????????????# #??????????????????# | | #???# #?????????????????# #??????????????????# | | +##### #?????????????????# #??????????????????# | | #?????????????????#bg#??????????????????# | | #?????????????????# #??????????????????# | | +###### #?????????????????# #??????????????????# | | #???#" #?????????????????# g#??????????????????# | | #???#T #?????????????????# ############???????# | | #???#""#?????????????????# + #???????# | | #???####?????????????##### ########## #???????# | | #????????????????????# ## #???????##+##??????# | | ##????????????????????# ## #???????# #??????# | | ??????????????????????# ## ######### < ########+ | | ??????????????????????# | | ????????????????????### | | ????????????????????# " ########################^ | | ????????????????????# " #??????????????????????# | +----------------------------------------------------+ Best States ------------- Heat Dissipation 31 Energy Generation 5 Energy Capacity 100 Matter Stores 286 Matter Capacity 300 Sight Range 16 Terrain Scan Density 10 Evasion (%) 50 Item Schematics ----------------- None Robot Schematics ------------------ None Fabricated ------------ Nothing Repaired ---------- Nothing Studied --------- None Alien Tech Used ----------------- None Achievements -------------- None Challenges ------------ None Game ------ Seed StormZioniteFlail Manual? 0 Play Time 00:10:34 Cumulative 126.9 hours Start 2026.02.01 @ 01:16:33 End 2026.02.01 @ 01:25:01 Sessions 1 Manual Loads 0 Difficulty Rogue Special Mode None Game No. 65 Rogue 65 Adventurer 0 Explorer 0 Win Type - Total 6 Types 5/0/1/0/0/0/0/0/0/0 Lore% 59 Gallery% 63 Achievement% 56 Wizard Run 0 Options --------- Layout 0 ASCII 0 Keyboard 1 Movement Arrows Keybinds 0 Fullscreen 1 Font 18/SmallcapsGlow Map View 76x50 Zoom Use 0% Tactical HUD 1 Map Filters NONE Filters NONE Steam 1 RUN: 50d6b782-a44f-4ffa-95a3-3b09df35e5d0